fUST/lending_fUST_20240619
["ID","MTS","AMOUNT","RATE_DAILY","PERIOD"]
[329850083,1718751047245,-24261.01119037,0.00016971,2]
[329850084,1718751047254,-35473.88841924,0.00016971,2]
[329850085,1718751047263,-500.0,0.00016972,2]
[329850086,1718751047272,-500.0,0.00016972,2]
[329850087,1718751047282,-500.0,0.00016972,2]
[329850088,1718751047292,-500.0,0.00016972,2]
[329850089,1718751047302,-178.37014474,0.00016972,2]
[329850090,1718751047311,-500.0,0.00016972,2]
[329850091,1718751047320,-500.0,0.00016972,2]
[329850092,1718751047329,-500.0,0.00016986,2]
[329850093,1718751047338,-1806.1,0.00016986,2]
[329850094,1718751047347,-155.01395126,0.00017243,2]
[329850095,1718751047356,-200.09136048,0.00017243,2]
[329850096,1718751047365,-500.0,0.00017243,2]
[329850097,1718751047374,-500.0,0.00017243,2]
[329850098,1718751047384,-500.0,0.00017243,2]
[329850099,1718751047393,-500.0,0.00017243,2]
[329850100,1718751047403,-500.0,0.00017243,2]
[329850101,1718751047417,-500.0,0.00017243,2]
[329850102,1718751047426,-500.0,0.00017243,2]
[329850103,1718751047435,-500.0,0.00017244,2]
[329850104,1718751047444,-500.0,0.00017244,2]
[329850105,1718751047454,-349.55309323,0.00017244,2]
[329850106,1718751047463,-506.61612816,0.00017244,2]
[329850107,1718751047473,-628.44,0.00017244,2]
[329850108,1718751047483,-858.89,0.00017244,2]
[329850109,1718751047495,-500.0,0.00017244,2]
[329850110,1718751047505,-500.0,0.00017244,2]
[329850111,1718751047515,-500.0,0.00017244,2]
[329850112,1718751047524,-500.0,0.00017244,2]
[329850113,1718751047534,-500.0,0.00017244,2]
[329850114,1718751047544,-534.52,0.00017244,2]
[329850115,1718751047554,-500.0,0.00017244,2]
[329850116,1718751047564,-500.0,0.00017244,2]
[329850117,1718751047573,-500.0,0.00017244,2]
[329850118,1718751047582,-6329.33,0.00017244,2]
[329850119,1718751047591,-500.0,0.00017244,2]
[329850120,1718751047601,-775.29,0.00017244,2]
[329850121,1718751047610,-585.05,0.00017244,2]
[329850122,1718751047730,-500.0,0.00017244,2]
[329850123,1718751047742,-805.94,0.00017244,2]
[329850124,1718751047752,-500.0,0.00017244,2]
[329850125,1718751047763,-391.02,0.00017244,2]
[329850126,1718751047773,-500.0,0.00017244,2]
[329850127,1718751047784,-500.0,0.00017244,2]
[329850128,1718751047794,-500.0,0.00017244,2]
[329850129,1718751047806,-500.0,0.00017244,2]
[329850130,1718751047816,-872.09,0.00017244,2]
[329850131,1718751047827,-500.0,0.00017244,2]
[329850132,1718751047837,-500.0,0.00017244,2]
[329850133,1718751047847,-500.0,0.00017244,2]
[329850134,1718751047857,-500.0,0.00017244,2]
[329850135,1718751047866,-500.0,0.00017244,2]
[329850136,1718751047877,-500.0,0.00017244,2]
[329850137,1718751047888,-500.0,0.00017244,2]
[329850138,1718751047899,-500.0,0.00017244,2]
[329850139,1718751047909,-4006.08,0.00017244,2]
[329850140,1718751047918,-500.0,0.00017244,2]
[329850141,1718751047928,-383.73028773,0.00017244,2]
[329850142,1718751047937,-391.25911084,0.00017245,2]
[329850143,1718751047948,-500.0,0.00017245,2]
[329850144,1718751047957,-500.0,0.00017245,2]
[329850145,1718751047970,-500.0,0.00017245,2]
[329850146,1718751047979,-500.0,0.00017245,2]
[329850147,1718751047989,-500.0,0.00017245,2]
[329850148,1718751047998,-500.0,0.00017245,2]
[329850149,1718751048008,-500.0,0.00017245,2]
[329850150,1718751048017,-243.79829258,0.00017245,2]
[329850151,1718751048026,-500.0,0.00017245,2]
[329850152,1718751048035,-500.0,0.00017245,2]
[329850153,1718751048045,-500.0,0.00017245,2]
[329850154,1718751048054,-500.0,0.00017245,2]
[329850155,1718751048064,-500.0,0.00017245,2]
[329850156,1718751048073,-500.0,0.00017245,2]
[329850157,1718751048083,-500.0,0.00017245,2]
[329850158,1718751048092,-500.0,0.00017245,2]
[329850159,1718751048102,-500.0,0.00017245,2]
[329850160,1718751048112,-189.83178066,0.00017245,2]
[329850161,1718751048122,-500.0,0.00017245,2]
[329850162,1718751048132,-500.0,0.00017245,2]
[329850163,1718751048141,-500.0,0.00017245,2]
[329850164,1718751048151,-500.0,0.00017245,2]
[329850165,1718751048160,-500.0,0.00017245,2]
[329850166,1718751048169,-500.0,0.00017245,2]
[329850167,1718751048179,-500.0,0.00017245,2]
[329850168,1718751048188,-500.0,0.00017245,2]
[329850169,1718751048197,-500.0,0.00017245,2]
[329850170,1718751048206,-500.0,0.00017245,2]
[329850171,1718751048216,-500.0,0.00017245,2]
[329850172,1718751048225,-500.0,0.00017245,2]
[329850173,1718751048234,-500.0,0.00017245,2]
[329850174,1718751048243,-500.0,0.00017245,2]
[329850175,1718751048252,-500.0,0.00017245,2]
[329850176,1718751048262,-500.0,0.00017245,2]
[329850177,1718751048271,-302.68533679,0.00017245,2]
[329850178,1718751048281,-408.66311224,0.00017245,2]
[329850179,1718751048290,-500.0,0.00017246,2]
[329850180,1718751048300,-500.0,0.00017246,2]
[329850181,1718751048310,-321.67245539,0.00017246,2]
[329850182,1718751048319,-500.0,0.00017246,2]
[329850183,1718751048329,-500.0,0.0001726,2]
[329850184,1718751048338,-1806.1,0.0001726,2]
[329850185,1718751048348,-500.0,0.00017517,2]
[329850186,1718751048358,-500.0,0.00017517,2]
[329850187,1718751048368,-500.0,0.00017517,2]
[329850188,1718751048378,-500.0,0.00017517,2]
[329850189,1718751048387,-500.0,0.00017517,2]
[329850190,1718751048396,-500.0,0.00017517,2]
[329850191,1718751048408,-500.0,0.00017518,2]
[329850192,1718751048420,-500.0,0.00017518,2]
[329850193,1718751048429,-858.89,0.00017518,2]
[329850194,1718751048439,-500.0,0.00017518,2]
[329850195,1718751048451,-500.0,0.00017518,2]
[329850196,1718751048461,-500.0,0.00017518,2]
[329850197,1718751048470,-500.0,0.00017518,2]
[329850198,1718751048480,-500.0,0.00017518,2]
[329850199,1718751048491,-534.52,0.00017518,2]
[329850200,1718751048500,-647.59209071,0.00017518,2]
[329850201,1718751048510,-500.0,0.00017518,2]
[329850202,1718751048519,-500.0,0.00017518,2]
[329850203,1718751048528,-6329.33,0.00017518,2]
[329850204,1718751048538,-506.3,0.00017518,2]
[329850205,1718751048547,-775.29,0.00017518,2]
[329850206,1718751048557,-585.05,0.00017518,2]
[329850207,1718751048567,-500.0,0.00017518,2]
[329850208,1718751048577,-805.94,0.00017518,2]
[329850209,1718751048587,-500.0,0.00017518,2]
[329850210,1718751048597,-500.0,0.00017518,2]
[329850211,1718751048607,-500.0,0.00017518,2]
[329850212,1718751048617,-500.0,0.00017518,2]
[329850213,1718751048626,-500.0,0.00017518,2]
[329850214,1718751048636,-385.34548278,0.00017518,2]
[329850215,1718751048645,-872.09,0.00017518,2]
[329850216,1718751048655,-500.0,0.00017518,2]
[329850217,1718751048664,-500.0,0.00017518,2]
[329850218,1718751048674,-500.0,0.00017518,2]
[329850219,1718751048683,-500.0,0.00017518,2]
[329850220,1718751048692,-500.0,0.00017518,2]
[329850221,1718751048702,-500.0,0.00017518,2]
[329850222,1718751048711,-500.0,0.00017518,2]
[329850223,1718751048721,-155.22317698,0.00017518,2]
[329850224,1718751048730,-4006.08,0.00017518,2]
[329850225,1718751048739,-500.0,0.00017518,2]
[329850226,1718751048748,-500.0,0.00017519,2]
[329850227,1718751048758,-500.0,0.00017519,2]
[329850228,1718751048767,-365.3879374,0.00017519,2]
[329850229,1718751048777,-357.92522446,0.00017519,2]
[329850230,1718751048786,-500.0,0.00017519,2]
[329850231,1718751048795,-500.0,0.00017519,2]
[329850232,1718751048804,-500.0,0.00017519,2]
[329850233,1718751048815,-500.0,0.00017519,2]
[329850234,1718751048825,-500.0,0.00017519,2]
[329850235,1718751048834,-500.0,0.00017519,2]
[329850236,1718751048843,-500.0,0.00017519,2]
[329850237,1718751048852,-500.0,0.00017519,2]
[329850238,1718751048862,-500.0,0.00017519,2]
[329850239,1718751048871,-500.0,0.00017519,2]
[329850240,1718751048880,-500.0,0.00017519,2]
[329850241,1718751048890,-500.0,0.00017519,2]
[329850242,1718751048901,-500.0,0.00017519,2]
[329850243,1718751048912,-500.0,0.00017519,2]
[329850244,1718751048923,-500.0,0.00017519,2]
[329850245,1718751048935,-500.0,0.00017519,2]
[329850246,1718751048944,-500.0,0.00017519,2]
[329850247,1718751048954,-500.0,0.00017519,2]
[329850248,1718751048963,-500.0,0.00017519,2]
[329850249,1718751048972,-500.0,0.0001752,2]
[329850250,1718751048981,-500.0,0.0001752,2]
[329850251,1718751048991,-500.0,0.0001752,2]
[329850252,1718751049000,-500.0,0.0001752,2]
[329850253,1718751049009,-500.0,0.00017534,2]
[329850254,1718751049018,-1806.1,0.00017534,2]
[329850255,1718751049028,-500.0,0.00017791,2]
[329850256,1718751049037,-500.0,0.00017791,2]
[329850257,1718751049047,-500.0,0.00017791,2]
[329850258,1718751049057,-500.0,0.00017791,2]
[329850259,1718751049066,-500.0,0.00017791,2]
[329850260,1718751049075,-500.0,0.00017791,2]
[329850261,1718751049084,-500.0,0.00017792,2]
[329850262,1718751049093,-500.0,0.00017792,2]
[329850263,1718751049102,-858.89,0.00017792,2]
[329850264,1718751049112,-500.0,0.00017792,2]
[329850265,1718751049121,-500.0,0.00017792,2]
[329850266,1718751049131,-500.0,0.00017792,2]
[329850267,1718751049141,-500.0,0.00017792,2]
[329850268,1718751049150,-500.0,0.00017792,2]
[329850269,1718751049160,-534.52,0.00017792,2]
[329850270,1718751049170,-636.61,0.00017792,2]
[329850271,1718751049180,-500.0,0.00017792,2]
[329850272,1718751049190,-6329.33,0.00017792,2]
[329850273,1718751049199,-775.29,0.00017792,2]
[329850274,1718751049209,-585.05,0.00017792,2]
[329850275,1718751049219,-500.0,0.00017792,2]
[329850276,1718751049229,-805.94,0.00017792,2]
[329850277,1718751049238,-500.0,0.00017792,2]
[329850278,1718751049248,-500.0,0.00017792,2]
[329850279,1718751049259,-561.18764391,0.00017792,2]
[329850280,1718751049269,-500.0,0.00017792,2]
[329850281,1718751049279,-500.0,0.00017792,2]
[329850282,1718751049288,-872.09,0.00017792,2]
[329850283,1718751049297,-500.0,0.00017792,2]
[329850284,1718751049307,-500.0,0.00017792,2]
[329850285,1718751049317,-500.0,0.00017792,2]
[329850286,1718751049326,-500.0,0.00017792,2]
[329850287,1718751049336,-500.0,0.00017792,2]
[329850288,1718751049345,-500.0,0.00017792,2]
[329850289,1718751049355,-500.0,0.00017792,2]
[329850290,1718751049365,-500.0,0.00017792,2]
[329850291,1718751049375,-4006.08,0.00017792,2]
[329850292,1718751049384,-500.0,0.00017793,2]
[329850293,1718751049393,-239.40668077,0.00017793,2]
[329850294,1718751049406,-500.0,0.00017793,2]
[329850295,1718751049416,-500.0,0.00017793,2]
[329850296,1718751049425,-500.0,0.00017793,2]
[329850297,1718751049435,-500.0,0.00017793,2]
[329850298,1718751049446,-500.0,0.00017793,2]
[329850299,1718751049455,-500.0,0.00017793,2]
[329850300,1718751049464,-500.0,0.00017793,2]
[329850301,1718751049473,-500.0,0.00017793,2]
[329850302,1718751049483,-500.0,0.00017793,2]
[329850303,1718751049495,-500.0,0.00017793,2]
[329850304,1718751049504,-500.0,0.00017793,2]
[329850305,1718751049514,-500.0,0.00017793,2]
[329850306,1718751049523,-500.0,0.00017793,2]
[329850307,1718751049532,-500.0,0.00017793,2]
[329850308,1718751049541,-500.0,0.00017793,2]
[329850309,1718751049551,-500.0,0.00017793,2]
[329850310,1718751049562,-500.0,0.00017793,2]
[329850311,1718751049571,-500.0,0.00017793,2]
[329850312,1718751049580,-500.0,0.00017794,2]
[329850313,1718751049590,-500.0,0.00017794,2]
[329850314,1718751049599,-500.0,0.00017794,2]
[329850315,1718751049609,-500.0,0.00017808,2]
[329850316,1718751049618,-1806.1,0.00017808,2]
[329850317,1718751049628,-500.0,0.00018065,2]
[329850318,1718751049638,-500.0,0.00018065,2]
[329850319,1718751049648,-500.0,0.00018065,2]
[329850320,1718751049657,-500.0,0.00018065,2]
[329850321,1718751049667,-500.0,0.00018065,2]
[329850322,1718751049677,-500.0,0.00018065,2]
[329850323,1718751049686,-500.0,0.00018066,2]
[329850324,1718751049696,-500.0,0.00018066,2]
[329850325,1718751049705,-858.89,0.00018066,2]
[329850326,1718751049714,-500.0,0.00018066,2]
[329850327,1718751049724,-500.0,0.00018066,2]
[329850328,1718751049733,-251.66,0.00018066,2]
[329850329,1718751049743,-500.0,0.00018066,2]
[329850330,1718751049753,-500.0,0.00018066,2]
[329850331,1718751049763,-534.52,0.00018066,2]
[329850332,1718751049773,-500.0,0.00018066,2]
[329850333,1718751049782,-6329.33,0.00018066,2]
[329850334,1718751049792,-775.29,0.00018066,2]
[329850335,1718751049801,-585.05,0.00018066,2]
[329850336,1718751049811,-500.0,0.00018066,2]
[329850337,1718751049820,-805.94,0.00018066,2]
[329850338,1718751049829,-500.0,0.00018066,2]
[329850339,1718751049839,-500.0,0.00018066,2]
[329850340,1718751049848,-500.0,0.00018066,2]
[329850341,1718751049858,-500.0,0.00018066,2]
[329850342,1718751049867,-872.09,0.00018066,2]
[329850343,1718751049877,-500.0,0.00018066,2]
[329850344,1718751049887,-500.0,0.00018066,2]
[329850345,1718751049896,-500.0,0.00018066,2]
[329850346,1718751049906,-500.0,0.00018066,2]
[329850347,1718751049916,-500.0,0.00018066,2]
[329850348,1718751049925,-497.18,0.00018066,2]
[329850349,1718751049934,-500.0,0.00018066,2]
[329850350,1718751049944,-4006.08,0.00018066,2]
[329850351,1718751049954,-500.0,0.00018067,2]
[329850352,1718751049963,-500.0,0.00018067,2]
[329850353,1718751049973,-569.36258132,0.00018067,2]
[329850354,1718751049982,-500.0,0.00018067,2]
[329850355,1718751049991,-500.0,0.00018067,2]
[329850356,1718751050001,-500.0,0.00018067,2]
[329850357,1718751050010,-500.0,0.00018067,2]
[329850358,1718751050019,-510.85589307,0.00018067,2]
[329850359,1718751050029,-500.0,0.00018067,2]
[329850360,1718751050039,-500.0,0.00018067,2]
[329850361,1718751050048,-500.0,0.00018067,2]
[329850362,1718751050059,-500.0,0.00018067,2]
[329850363,1718751050068,-500.0,0.00018067,2]
[329850364,1718751050078,-500.0,0.00018067,2]
[329850365,1718751050087,-500.0,0.00018067,2]
[329850366,1718751050096,-500.0,0.00018067,2]
[329850367,1718751050105,-500.0,0.00018067,2]
[329850368,1718751050115,-500.0,0.00018067,2]
[329850369,1718751050124,-500.0,0.00018067,2]
[329850370,1718751050134,-500.0,0.00018068,2]
[329850371,1718751050143,-500.0,0.00018068,2]
[329850372,1718751050152,-500.0,0.00018068,2]
[329850373,1718751050254,-500.0,0.00018082,2]
[329850374,1718751050264,-1806.1,0.00018082,2]
[329850375,1718751050273,-500.0,0.00018339,2]
[329850376,1718751050283,-500.0,0.00018339,2]
[329850377,1718751050292,-500.0,0.00018339,2]
[329850378,1718751050301,-500.0,0.00018339,2]
[329850379,1718751050312,-500.0,0.00018339,2]
[329850380,1718751050321,-500.0,0.0001834,2]
[329850381,1718751050335,-500.0,0.0001834,2]
[329850382,1718751050344,-858.89,0.0001834,2]
[329850383,1718751050354,-500.0,0.0001834,2]
[329850384,1718751050364,-500.0,0.0001834,2]
[329850385,1718751050374,-500.0,0.0001834,2]
[329850386,1718751050383,-500.0,0.0001834,2]
[329850387,1718751050392,-534.52,0.0001834,2]
[329850388,1718751050402,-151.0,0.0001834,2]
[329850389,1718751050416,-151.0,0.0001834,2]
[329850390,1718751050426,-151.0,0.0001834,2]
[329850391,1718751050435,-151.0,0.0001834,2]
[329850392,1718751050445,-500.0,0.0001834,2]
[329850393,1718751050455,-6329.33,0.0001834,2]
[329850394,1718751050465,-775.29,0.0001834,2]
[329850395,1718751050474,-151.0,0.0001834,2]
[329850396,1718751050486,-151.0,0.0001834,2]
[329850397,1718751050495,-585.05,0.0001834,2]
[329850398,1718751050504,-151.0,0.0001834,2]
[329850399,1718751050514,-500.0,0.0001834,2]
[329850400,1718751050524,-805.94,0.0001834,2]
[329850401,1718751050534,-500.0,0.0001834,2]
[329850402,1718751050544,-500.0,0.0001834,2]
[329850403,1718751050555,-500.0,0.0001834,2]
[329850404,1718751050564,-500.0,0.0001834,2]
[329850405,1718751050574,-872.09,0.0001834,2]
[329850406,1718751050584,-500.0,0.0001834,2]
[329850407,1718751050593,-500.0,0.0001834,2]
[329850408,1718751050603,-500.0,0.0001834,2]
[329850409,1718751050614,-233.44,0.0001834,2]
[329850410,1718751050624,-500.0,0.0001834,2]
[329850411,1718751050635,-4006.08,0.0001834,2]
[329850412,1718751050644,-500.0,0.00018341,2]
[329850413,1718751050654,-500.0,0.00018341,2]
[329850414,1718751050664,-500.0,0.00018341,2]
[329850415,1718751050673,-500.0,0.00018341,2]
[329850416,1718751050683,-500.0,0.00018341,2]
[329850417,1718751050693,-500.0,0.00018341,2]
[329850418,1718751050702,-500.0,0.00018341,2]
[329850419,1718751050711,-500.0,0.00018341,2]
[329850420,1718751050721,-467.10765048,0.00018341,2]
[329850421,1718751050731,-500.0,0.00018341,2]
[329850422,1718751050740,-500.0,0.00018341,2]
[329850423,1718751050750,-500.0,0.00018341,2]
[329850424,1718751050760,-500.0,0.00018341,2]
[329850425,1718751050769,-500.0,0.00018341,2]
[329850426,1718751050779,-500.0,0.00018341,2]
[329850427,1718751050789,-224.29586719,0.00018342,2]
[329850428,1718751050798,-500.0,0.00018342,2]
[329850429,1718751050811,-500.0,0.00018342,2]
[329850430,1718751050821,-500.0,0.00018342,2]
[329850431,1718751050830,-1806.1,0.00018356,2]
[329850432,1718751050840,-721.95297279,0.00018613,2]
[329850433,1718751050849,-500.0,0.00018613,2]
[329850434,1718751050859,-500.0,0.00018613,2]
[329850435,1718751050868,-500.0,0.00018613,2]
[329850436,1718751050878,-500.0,0.00018613,2]
[329850437,1718751050887,-500.0,0.00018613,2]
[329850438,1718751050897,-344.00876126,0.00018614,2]
[329850439,1718751050907,-500.0,0.00018614,2]
[329850440,1718751050917,-500.0,0.00018614,2]
[329850441,1718751050925,-151.0,0.00018614,2]
[329850442,1718751050935,-151.0,0.00018614,2]
[329850443,1718751050944,-151.0,0.00018614,2]
[329850444,1718751050954,-858.89,0.00018614,2]
[329850445,1718751050964,-500.0,0.00018614,2]
[329850446,1718751050974,-500.0,0.00018614,2]
[329850447,1718751050983,-500.0,0.00018614,2]
[329850448,1718751050992,-500.0,0.00018614,2]
[329850449,1718751051001,-534.52,0.00018614,2]
[329850450,1718751051011,-500.0,0.00018614,2]
[329850451,1718751051020,-6329.33,0.00018614,2]
[329850452,1718751051029,-775.29,0.00018614,2]
[329850453,1718751051039,-585.05,0.00018614,2]
[329850454,1718751051048,-500.0,0.00018614,2]
[329850455,1718751051059,-805.94,0.00018614,2]
[329850456,1718751051068,-500.0,0.00018614,2]
[329850457,1718751051078,-500.0,0.00018614,2]
[329850458,1718751051087,-151.0,0.00018614,2]
[329850459,1718751051096,-500.0,0.00018614,2]
[329850460,1718751051105,-500.0,0.00018614,2]
[329850461,1718751051115,-872.09,0.00018614,2]
[329850462,1718751051124,-500.0,0.00018614,2]
[329850463,1718751051133,-500.0,0.00018614,2]
[329850464,1718751051142,-151.0,0.00018614,2]
[329850465,1718751051152,-500.0,0.00018614,2]
[329850466,1718751051162,-500.0,0.00018614,2]
[329850467,1718751051171,-4006.08,0.00018614,2]
[329850468,1718751051181,-500.0,0.00018615,2]
[329850469,1718751051190,-500.0,0.00018615,2]
[329850470,1718751051199,-500.0,0.00018615,2]
[329850471,1718751051209,-500.0,0.00018615,2]
[329850472,1718751051219,-500.0,0.00018615,2]
[329850473,1718751051228,-500.0,0.00018615,2]
[329850474,1718751051237,-500.0,0.00018615,2]
[329850475,1718751051247,-500.0,0.00018615,2]
[329850476,1718751051257,-500.0,0.00018615,2]
[329850477,1718751051266,-500.0,0.00018615,2]
[329850478,1718751051275,-500.0,0.00018615,2]
[329850479,1718751051285,-500.0,0.00018615,2]
[329850480,1718751051295,-500.0,0.00018616,2]
[329850481,1718751051305,-500.0,0.00018616,2]
[329850482,1718751051315,-500.0,0.00018616,2]
[329850483,1718751051324,-1806.1,0.0001863,2]
[329850484,1718751051333,-419.0,0.00018665,2]
[329850485,1718751051343,-468.23492948,0.00018887,2]
[329850486,1718751051352,-500.0,0.00018888,2]
[329850487,1718751051362,-858.89,0.00018888,2]
[329850488,1718751051371,-500.0,0.00018888,2]
[329850489,1718751051380,-500.0,0.00018888,2]
[329850490,1718751051390,-534.52,0.00018888,2]
[329850491,1718751051401,-151.0,0.00018888,2]
[329850492,1718751051415,-151.0,0.00018888,2]
[329850493,1718751051424,-500.0,0.00018888,2]
[329850494,1718751051434,-6329.33,0.00018888,2]
[329850495,1718751051445,-775.29,0.00018888,2]
[329850496,1718751051454,-151.0,0.00018888,2]
[329850497,1718751051466,-151.0,0.00018888,2]
[329850498,1718751051475,-585.05,0.00018888,2]
[329850499,1718751051488,-151.0,0.00018888,2]
[329850500,1718751051498,-500.0,0.00018888,2]
[329850501,1718751051507,-805.94,0.00018888,2]
[329850502,1718751051517,-236.46767737,0.00018888,2]
[329850503,1718751051526,-500.0,0.00018888,2]
[329850504,1718751051536,-500.0,0.00018888,2]
[329850505,1718751051545,-500.0,0.00018888,2]
[329850506,1718751051556,-872.09,0.00018888,2]
[329850507,1718751051566,-500.0,0.00018888,2]
[329850508,1718751051576,-500.0,0.00018888,2]
[329850509,1718751051585,-500.0,0.00018888,2]
[329850510,1718751051594,-500.0,0.00018888,2]
[329850511,1718751051603,-4006.08,0.00018888,2]
[329850512,1718751051612,-500.0,0.00018889,2]
[329850513,1718751051621,-151.0,0.00018889,2]
[329850514,1718751051630,-500.0,0.00018889,2]
[329850515,1718751051640,-151.0,0.00018889,2]
[329850516,1718751051649,-500.0,0.00018889,2]
[329850517,1718751051659,-500.0,0.00018889,2]
[329850518,1718751051669,-359.05695255,0.00018889,2]
[329850519,1718751051678,-500.0,0.00018889,2]
[329850520,1718751051688,-500.0,0.00018889,2]
[329850521,1718751051697,-500.0,0.00018889,2]
[329850522,1718751051706,-500.0,0.00018889,2]
[329850523,1718751051716,-500.0,0.00018889,2]
[329850524,1718751051727,-500.0,0.0001889,2]
[329850525,1718751051736,-151.0,0.0001889,2]
[329850526,1718751051745,-151.0,0.0001889,2]
[329850527,1718751051754,-360.78,0.0001889,2]
[329850528,1718751051763,-500.0,0.0001889,2]
[329850529,1718751051773,-1806.1,0.00018904,2]
[329850530,1718751051782,-500.0,0.00018999,2]
[329850531,1718751051792,-17593.59238896,0.00019,2]
[329850532,1718751051801,-151.0,0.00019,2]
[329850533,1718751051812,-151.0,0.00019,2]
[329850534,1718751051822,-151.0,0.00019,2]
[329850535,1718751051831,-151.0,0.00019,2]
[329850536,1718751051841,-151.0,0.00019,2]
[329850537,1718751051850,-151.0,0.00019,2]
[329850538,1718751051860,-319.506488,0.00019096,2]
[329850539,1718751051869,-858.89,0.00019162,2]
[329850540,1718751051878,-500.0,0.00019162,2]
[329850541,1718751051888,-500.0,0.00019162,2]
[329850542,1718751051898,-534.52,0.00019162,2]
[329850543,1718751051907,-500.0,0.00019162,2]
[329850544,1718751051916,-6329.33,0.00019162,2]
[329850545,1718751051926,-775.29,0.00019162,2]
[329850546,1718751051936,-585.05,0.00019162,2]
[329850547,1718751051947,-805.94,0.00019162,2]
[329850548,1718751051956,-500.0,0.00019162,2]
[329850549,1718751051966,-872.09,0.00019162,2]
[329850550,1718751051975,-443.36,0.00019162,2]
[329850551,1718751051984,-500.0,0.00019162,2]
[329850552,1718751051993,-500.0,0.00019162,2]
[329850553,1718751052002,-4006.08,0.00019162,2]
[329850554,1718751052011,-500.0,0.00019163,2]
[329850555,1718751052021,-500.0,0.00019163,2]
[329850556,1718751052031,-423.99,0.00019163,2]
[329850557,1718751052040,-425.11,0.00019163,2]
[329850558,1718751052050,-151.0,0.00019163,2]
[329850559,1718751052061,-151.0,0.00019163,2]
[329850560,1718751052071,-151.0,0.00019163,2]
[329850561,1718751052080,-286.37,0.00019163,2]
[329850562,1718751052090,-151.0,0.00019163,2]
[329850563,1718751052100,-500.0,0.00019163,2]
[329850564,1718751052110,-1806.1,0.00019178,2]
[329850565,1718751052120,-165.527653,0.00019178,2]
[329850566,1718751052130,-500.0,0.00019435,2]
[329850567,1718751052140,-858.89,0.00019436,2]
[329850568,1718751052149,-500.0,0.00019436,2]
[329850569,1718751052158,-500.0,0.00019436,2]
[329850570,1718751052167,-534.52,0.00019436,2]
[329850571,1718751052177,-500.0,0.00019436,2]
[329850572,1718751052186,-6329.33,0.00019436,2]
[329850573,1718751052196,-775.29,0.00019436,2]
[329850574,1718751052206,-585.05,0.00019436,2]
[329850575,1718751052217,-805.94,0.00019436,2]
[329850576,1718751052227,-481.6,0.00019436,2]
[329850577,1718751052236,-872.09,0.00019436,2]
[329850578,1718751052246,-500.0,0.00019436,2]
[329850579,1718751052255,-500.0,0.00019436,2]
[329850580,1718751052264,-4006.08,0.00019436,2]
[329850581,1718751052274,-500.0,0.00019437,2]
[329850582,1718751052284,-151.0,0.00019437,2]